{"text_format":"3","workbook":"xlsx","n_sheets":2,"sheets":["COMO UTILIZAR ESTE LIVRO","LIVRO DE NOTAS"],"not_rendered":{"defined_names":7},"read":"whole","date_system":"1900"}

{"sheet":"COMO UTILIZAR ESTE LIVRO","index":0,"n_rows":10,"n_cols":2,"rows_kept":10}
[null,"INSTRUÇÕES"]
[null,"Utilize a folha de cálculo LIVRO DE NOTAS para calcular as notas – cada tarefa vale um determinado número de pontos. "]
[null,"Instruções:  certifique-se de que guarda cópias das notas."]
[null,"1. Preencha o nome da escola, as informações da turma, os nomes dos estudantes e os números dos estudantes (opcional).   "]
[null,"2. Ajuste a tabela Notas e GPA para corresponder ao seu sistema de classificação."]
[null,"3. Preencha os nomes da tarefa, questionário ou teste (por ex.: \"Questionário 1\") a partir da célula H8, assim como os pontos que cada tarefa vale. "]
[null,"4. Preencha as pontuações de cada estudante em cada tarefa ou teste. As colunas \"Média\", \"Pontuação\", \"Classificação por Extenso\" e \"GPA\" são calculadas automaticamente, mas pode substituir os conteúdos, se necessário. Para atribuir créditos extra, atribua mais pontos a uma tarefa do que os pontos totais possíveis indicados para a mesma."]
[null,"Utilize o comando \"Área de Impressão\" no menu Esquema de Página se quiser alterar a área de impressão."]
[null,"A pontuação das notas é baseada na escala de percentagem padrão, consoante o número total de pontos atribuídos às linhas 8 e 9. Ajuste os pontos de cada tarefa ou teste e, em seguida, ajuste a percentagem com a nota apropriada. Substitua as células Pontuação para efetuar alterações manualmente."]
[null,"Introduza cada tarefa, questionário ou teste e os pontos equivalentes nas células H8 a X9."]

{"sheet":"LIVRO DE NOTAS","index":1,"n_rows":24,"n_cols":24,"rows_kept":24,"merged":[[1,1,2,6],[3,1,3,6],[4,1,6,6],[7,4,7,6],[8,4,8,6],[10,4,10,6],[11,4,11,6],[20,1,20,2],[20,3,20,4],[21,1,21,2],[21,3,21,4],[22,1,22,2],[22,3,22,4],[23,1,23,2],[23,3,23,4]]}
[null,"O NOME DA ESCOLA"]
[null,"Nome do Professor"]
[{"$nulls":7},"Pontuação",{"$f":"I4*PontuaçãoTotal","v":118},120,126,134,140,{"v":145.6666666666666,"d":"146"},154,160,166,174,180,186,194]
[null,"Turma/Projeto",{"$nulls":5},"%",{"v":0.59,"d":"59%"},{"v":0.6,"d":"60%"},{"v":0.63,"d":"63%"},{"v":0.67,"d":"67%"},{"v":0.7,"d":"70%"},{"v":0.728333333333333,"d":"73%"},{"v":0.77,"d":"77%"},{"v":0.8,"d":"80%"},{"v":0.83,"d":"83%"},{"v":0.87,"d":"87%"},{"v":0.9,"d":"90%"},{"v":0.93,"d":"93%"},{"v":0.97,"d":"97%"}]
[null,"Ano/Semestre/Trimestre",{"$nulls":5},"Classificação por Extenso","F","D-","D","D+","C-","C","C+","B-","B","B+","A-","A","A+"]
[{"$nulls":7},"GPA",0,0.67,1,1.33,1.67,2,2.33,2.67,3,3.33,3.67,4,4]
[]
[{"$nulls":4},"Nome do Teste ou Tarefa",null,null,"H1","H2","Q1"]
[{"$nulls":4},"Pontos Totais Disponíveis",null,null,50,50,100]
[]
[{"$nulls":4},"Número total de tarefas e testes:",null,null,{"$f":"COUNTA(H8:AH8)","v":3}]
[{"$nulls":4},"Pontos totais possíveis:",null,null,{"$f":"SUM(H9:AH9)","v":200}]
[]
[null,"Nome do Estudante","N.º do Estudante","Média","Pontuação","Classificação por Extenso","GPA","Coluna6","Coluna7","Coluna8","Coluna9","Coluna10","Coluna11","Coluna12","Coluna13","Coluna14","Coluna15","Coluna16","Coluna17","Coluna18","Coluna19","Coluna20","Coluna21","Coluna22"]
[null,"Estudante número 1",null,{"$f":"IFERROR(IF(COUNT(Notas[[#This Row],[Coluna6]:[Coluna22]])=0,\"\",SUM(Notas[[#This Row],[Coluna6]:[Coluna22]])/PontuaçãoTotal),\"\")","v":{"v":0.91,"d":"91.0%"}},{"$f":"IF(COUNT(Notas[[#This Row],[Coluna6]:[Coluna22]])=0,\"\",SUM(Notas[[#This Row],[Coluna6]:[Coluna22]]))","v":182},{"$f":"IFERROR(IF(Notas[[#This Row],[Média]]<>\"\",HLOOKUP(Notas[[#This Row],[Média]]*PontuaçãoTotal,TabelaDeNotas,3),\"\"),0)","v":"A-"},{"$f":"IFERROR(IF(Notas[[#This Row],[Média]]<>\"\",HLOOKUP(Notas[[#This Row],[Média]]*PontuaçãoTotal,TabelaDeNotas,4),\"\"),0)","v":3.67},45,45,92]
[null,"Estudante número 2",null,{"$f":"IFERROR(IF(COUNT(Notas[[#This Row],[Coluna6]:[Coluna22]])=0,\"\",SUM(Notas[[#This Row],[Coluna6]:[Coluna22]])/PontuaçãoTotal),\"\")","v":{"v":1,"d":"100.0%"}},{"$f":"IF(COUNT(Notas[[#This Row],[Coluna6]:[Coluna22]])=0,\"\",SUM(Notas[[#This Row],[Coluna6]:[Coluna22]]))","v":200},{"$f":"IFERROR(IF(Notas[[#This Row],[Média]]<>\"\",HLOOKUP(Notas[[#This Row],[Média]]*PontuaçãoTotal,TabelaDeNotas,3),\"\"),0)","v":"A+"},{"$f":"IFERROR(IF(Notas[[#This Row],[Média]]<>\"\",HLOOKUP(Notas[[#This Row],[Média]]*PontuaçãoTotal,TabelaDeNotas,4),\"\"),0)","v":{"v":4,"d":"4.00"}},50,50,100]
[{"$nulls":3},{"$f":"IFERROR(IF(COUNT(Notas[[#This Row],[Coluna6]:[Coluna22]])=0,\"\",SUM(Notas[[#This Row],[Coluna6]:[Coluna22]])/PontuaçãoTotal),\"\")","v":""},{"$f":"IF(COUNT(Notas[[#This Row],[Coluna6]:[Coluna22]])=0,\"\",SUM(Notas[[#This Row],[Coluna6]:[Coluna22]]))","v":""},{"$f":"IFERROR(IF(Notas[[#This Row],[Média]]<>\"\",HLOOKUP(Notas[[#This Row],[Média]]*PontuaçãoTotal,TabelaDeNotas,3),\"\"),0)","v":""},{"$f":"IFERROR(IF(Notas[[#This Row],[Média]]<>\"\",HLOOKUP(Notas[[#This Row],[Média]]*PontuaçãoTotal,TabelaDeNotas,4),\"\"),0)","v":""}]
[{"$nulls":3},{"$f":"IFERROR(IF(COUNT(Notas[[#This Row],[Coluna6]:[Coluna22]])=0,\"\",SUM(Notas[[#This Row],[Coluna6]:[Coluna22]])/PontuaçãoTotal),\"\")","v":""},{"$f":"IF(COUNT(Notas[[#This Row],[Coluna6]:[Coluna22]])=0,\"\",SUM(Notas[[#This Row],[Coluna6]:[Coluna22]]))","v":""},{"$f":"IFERROR(IF(Notas[[#This Row],[Média]]<>\"\",HLOOKUP(Notas[[#This Row],[Média]]*PontuaçãoTotal,TabelaDeNotas,3),\"\"),0)","v":""},{"$f":"IFERROR(IF(Notas[[#This Row],[Média]]<>\"\",HLOOKUP(Notas[[#This Row],[Média]]*PontuaçãoTotal,TabelaDeNotas,4),\"\"),0)","v":""}]
[{"$nulls":3},{"$f":"IFERROR(IF(COUNT(Notas[[#This Row],[Coluna6]:[Coluna22]])=0,\"\",SUM(Notas[[#This Row],[Coluna6]:[Coluna22]])/PontuaçãoTotal),\"\")","v":""},{"$f":"IF(COUNT(Notas[[#This Row],[Coluna6]:[Coluna22]])=0,\"\",SUM(Notas[[#This Row],[Coluna6]:[Coluna22]]))","v":""},{"$f":"IFERROR(IF(Notas[[#This Row],[Média]]<>\"\",HLOOKUP(Notas[[#This Row],[Média]]*PontuaçãoTotal,TabelaDeNotas,3),\"\"),0)","v":""},{"$f":"IFERROR(IF(Notas[[#This Row],[Média]]<>\"\",HLOOKUP(Notas[[#This Row],[Média]]*PontuaçãoTotal,TabelaDeNotas,4),\"\"),0)","v":""}]
[]
[null,"Resumo da Turma",null,"Média",null,"Classificação por Extenso","GPA","","","","","","","","","","",""]
[null," Média",null,{"$f":"IFERROR(AVERAGE(Notas[[#All],[Média]]),0)","v":{"v":0.9550000000000001,"d":"95.5%"}},null,{"$f":"IFERROR(HLOOKUP(D22*PontuaçãoTotal,TabelaDeNotas,3),\"\")","v":"A"},{"$f":"IFERROR(AVERAGE(Notas[[#All],[GPA]]),0)","v":{"v":3.835,"d":"3.84"}},"","","","","","","","","","","","","","","","",""]
[null," Pontuação Mais Alta",null,{"$f":"IFERROR(MAX(Notas[[#All],[Média]]),0)","v":{"v":1,"d":"100.0%"}},null,{"$f":"IFERROR(HLOOKUP(D23*PontuaçãoTotal,TabelaDeNotas,3),\"\")","v":"A+"},{"$f":"IFERROR(MAX(Notas[[#All],[GPA]]),0)","v":{"v":4,"d":"4.00"}},"","","","","","","","","","","","","","","","",""]
[null," Pontuação Mais Baixa",null,{"$f":"IFERROR(MIN(Notas[[#All],[Média]]),0)","v":{"v":0.91,"d":"91.0%"}},null,{"$f":"IFERROR(HLOOKUP(D24*PontuaçãoTotal,TabelaDeNotas,3),\"\")","v":"A-"},{"$f":"IFERROR(MIN(Notas[[#All],[GPA]]),0)","v":3.67},"","","","","","","","","","","","","","","","",""]